fUSD/lending_fUSD_20260202
["ID","MTS","AMOUNT","RATE_DAILY","PERIOD"]
[404349283,1770070312499,-151.0,0.000437,120]
[404349284,1770070312508,-318.174447,0.000437,120]
[404349285,1770070312519,-318.174447,0.000437,120]
[404349286,1770070312528,-318.174447,0.000437,120]
[404349287,1770070312538,-151.0,0.000437,120]
[404349288,1770070312547,-151.0,0.000437,120]
[404349289,1770070312556,-151.0,0.000437,120]
[404349290,1770070312566,-151.0,0.000437,120]
[404349291,1770070312575,-151.0,0.000437,120]
[404349292,1770070312584,-242.869132,0.000437,120]
[404349293,1770070312595,-151.0,0.000437,120]
[404349294,1770070312605,-174.677664,0.000437,120]
[404349295,1770070312614,-174.677664,0.000437,120]
[404349296,1770070312624,-181.408787,0.000437,120]
[404349297,1770070312636,-174.677664,0.000437,120]
[404349298,1770070312645,-181.408787,0.000437,120]
[404349299,1770070312655,-174.677664,0.000437,120]
[404349300,1770070312665,-181.408787,0.000437,120]
[404349301,1770070312674,-181.408787,0.000437,120]
[404349302,1770070312683,-1311.465332,0.000437,28]
[404349303,1770070312692,-1311.465332,0.000437,28]
[404349304,1770070312703,-1311.465332,0.000437,28]
[404349305,1770070312712,-1311.465332,0.000437,28]
[404349306,1770070312722,-151.0,0.000437,120]
[404349307,1770070312731,-151.0,0.000437,120]
[404349308,1770070312740,-151.0,0.000437,120]
[404349309,1770070312750,-247.754271,0.000437,120]
[404349310,1770070312759,-1758.3281037,0.000437,120]
[404349311,1770070312769,-150.0,0.00043711,30]
[404349312,1770070312779,-150.0,0.00043728,30]
[404349313,1770070312788,-150.0,0.0004375,30]
[404349314,1770070312798,-150.0,0.00043754,30]
[404349315,1770070312808,-150.0,0.00043774,30]
[404349316,1770070312817,-150.0,0.00043792,2]
[404349317,1770070312827,-150.0,0.00043792,30]
[404349318,1770070312836,-6854.08667717,0.000438,15]
[404349319,1770070312846,-150.0,0.000438,120]
[404349320,1770070312855,-1000.0,0.000438,120]
[404349321,1770070312865,-756.68326478,0.000438,120]
[404349322,1770070312875,-150.0,0.00043804,30]
[404349323,1770070312884,-150.0,0.00043811,30]
[404349324,1770070312894,-150.0,0.00043834,2]
[404349325,1770070312903,-799.0,0.00043836,120]
[404349326,1770070312913,-800.0,0.00043836,20]
[404349327,1770070312922,-800.0,0.00043836,20]
[404349328,1770070312931,-395.14024062,0.0004385,30]
[404349329,1770070312940,-395.14024062,0.0004385,30]
[404349330,1770070312949,-601.9720403,0.0004385,30]
[404349331,1770070312959,-601.9720403,0.0004385,30]
[404349332,1770070312968,-150.0,0.00043857,30]
[404349333,1770070312977,-301.999946,0.00043884,120]
[404349334,1770070312986,-151.0,0.00043885,60]
[404349335,1770070312996,-276.069451,0.00043885,60]
[404349336,1770070313005,-151.0,0.00043885,120]
[404349337,1770070313014,-157.25391,0.00043885,120]
[404349338,1770070313023,-151.0,0.00043885,120]
[404349339,1770070313032,-151.0,0.00043885,120]
[404349340,1770070313041,-151.0,0.00043885,120]
[404349341,1770070313051,-151.0,0.00043885,120]
[404349342,1770070313060,-158.5947,0.00043885,120]
[404349343,1770070313069,-158.5947,0.00043885,120]
[404349344,1770070313079,-158.5947,0.00043885,120]
[404349345,1770070313088,-158.5947,0.00043885,120]
[404349346,1770070313097,-158.5947,0.00043885,120]
[404349347,1770070313107,-158.5947,0.00043885,120]
[404349348,1770070313117,-158.5947,0.00043885,120]
[404349349,1770070313126,-158.594699,0.00043885,120]
[404349350,1770070313136,-151.0,0.00043885,120]
[404349351,1770070313145,-151.0,0.00043885,120]
[404349352,1770070313155,-151.0,0.00043885,120]
[404349353,1770070313164,-151.0,0.00043885,120]
[404349354,1770070313176,-151.0,0.00043885,120]
[404349355,1770070313185,-151.0,0.00043885,120]
[404349356,1770070313195,-151.0,0.00043885,120]
[404349357,1770070313204,-260.80715,0.00043885,120]
[404349358,1770070313214,-151.0,0.00043885,120]
[404349359,1770070313223,-284.614648,0.00043885,120]
[404349360,1770070313233,-352.713549,0.00043885,120]
[404349361,1770070313248,-352.713549,0.00043885,120]
[404349362,1770070313258,-352.713549,0.00043885,120]
[404349363,1770070313267,-352.713549,0.00043885,120]
[404349364,1770070313276,-352.713549,0.00043885,120]
[404349365,1770070313286,-352.713549,0.00043885,120]
[404349366,1770070313295,-352.713549,0.00043885,120]
[404349367,1770070313304,-352.713541,0.00043885,120]
[404349368,1770070313315,-156.60205,0.00043885,120]
[404349369,1770070313324,-456.641554,0.00043885,120]
[404349370,1770070313334,-456.641554,0.00043885,120]
[404349371,1770070313343,-456.641554,0.00043885,120]
[404349372,1770070313352,-456.641554,0.00043885,120]
[404349373,1770070313361,-167.02189,0.00043885,30]
[404349374,1770070313370,-167.02189,0.00043885,30]
[404349375,1770070313379,-167.02189,0.00043885,30]
[404349376,1770070313389,-167.02189,0.00043885,30]
[404349377,1770070313398,-3035.858789,0.00043885,120]
[404349378,1770070313407,-3035.858789,0.00043885,120]
[404349379,1770070313417,-3035.858789,0.00043885,120]
[404349380,1770070313426,-3035.858789,0.00043885,120]
[404349381,1770070313435,-2232.826482,0.00043885,120]
[404349382,1770070313445,-151.0,0.00043885,120]
[404349383,1770070313454,-2232.826482,0.00043885,120]
[404349384,1770070313463,-151.0,0.00043885,120]
[404349385,1770070313472,-583.294373,0.00043885,7]
[404349386,1770070313482,-2232.826482,0.00043885,120]
[404349387,1770070313491,-151.0,0.00043885,120]
[404349388,1770070313501,-583.294373,0.00043885,7]
[404349389,1770070313510,-267.087965,0.00043885,120]
[404349390,1770070313519,-2232.826482,0.00043885,120]
[404349391,1770070313528,-583.294373,0.00043885,7]
[404349392,1770070313537,-583.294373,0.00043885,7]
[404349393,1770070313547,-151.0,0.00043887,60]
[404349394,1770070313557,-151.0,0.00043887,60]
[404349395,1770070313567,-151.0,0.00043887,120]
[404349396,1770070313576,-206.59668,0.00043887,120]
[404349397,1770070313586,-151.0,0.00043887,120]
[404349398,1770070313596,-151.0,0.00043887,120]
[404349399,1770070313606,-151.0,0.00043887,120]
[404349400,1770070313615,-151.0,0.00043887,120]
[404349401,1770070313625,-151.0,0.00043887,120]
[404349402,1770070313634,-151.0,0.00043887,120]
[404349403,1770070313644,-151.0,0.00043887,120]
[404349404,1770070313655,-151.0,0.00043887,120]
[404349405,1770070313665,-151.0,0.00043887,120]
[404349406,1770070313674,-151.0,0.00043887,120]
[404349407,1770070313684,-151.0,0.00043887,120]
[404349408,1770070313693,-151.0,0.00043887,120]
[404349409,1770070313703,-151.0,0.00043887,120]
[404349410,1770070313712,-151.000027,0.00043887,120]
[404349411,1770070313721,-256.604861,0.00043887,120]
[404349412,1770070313731,-256.604861,0.00043887,120]
[404349413,1770070313741,-256.604861,0.00043887,120]
[404349414,1770070313751,-256.604861,0.00043887,120]
[404349415,1770070313760,-256.604861,0.00043887,120]
[404349416,1770070313770,-256.604861,0.00043887,120]
[404349417,1770070313779,-256.604861,0.00043887,120]
[404349418,1770070313788,-256.604861,0.00043887,120]
[404349419,1770070313798,-256.604861,0.00043887,120]
[404349420,1770070313808,-256.604861,0.00043887,120]
[404349421,1770070313818,-256.604861,0.00043887,120]
[404349422,1770070313827,-256.604861,0.00043887,120]
[404349423,1770070313837,-151.0,0.00043887,120]
[404349424,1770070313846,-151.0,0.00043887,120]
[404349425,1770070313857,-151.0,0.00043887,120]
[404349426,1770070313866,-151.0,0.00043887,120]
[404349427,1770070313875,-151.0,0.00043887,120]
[404349428,1770070313885,-243.607451,0.00043887,120]
[404349429,1770070313894,-215.356354,0.00043887,120]
[404349430,1770070313903,-215.356354,0.00043887,120]
[404349431,1770070313912,-215.356354,0.00043887,120]
[404349432,1770070313922,-215.356354,0.00043887,120]
[404349433,1770070313931,-215.356354,0.00043887,120]
[404349434,1770070313939,-215.356354,0.00043887,120]
[404349435,1770070314089,-215.356354,0.00043887,120]
[404349436,1770070314099,-215.356354,0.00043887,120]
[404349437,1770070314109,-215.356354,0.00043887,120]
[404349438,1770070314118,-215.356354,0.00043887,120]
[404349439,1770070314127,-215.356354,0.00043887,120]
[404349440,1770070314137,-215.356346,0.00043887,120]
[404349441,1770070314145,-198.575761,0.00043887,120]
[404349442,1770070314155,-198.575761,0.00043887,120]
[404349443,1770070314164,-198.575761,0.00043887,120]
[404349444,1770070314173,-198.575761,0.00043887,120]
[404349445,1770070314182,-198.575761,0.00043887,120]
[404349446,1770070314191,-198.575761,0.00043887,120]
[404349447,1770070314200,-198.575761,0.00043887,120]
[404349448,1770070314209,-198.575761,0.00043887,120]
[404349449,1770070314218,-198.575761,0.00043887,120]
[404349450,1770070314227,-198.575761,0.00043887,120]
[404349451,1770070314238,-198.575761,0.00043887,120]
[404349452,1770070314249,-198.575768,0.00043887,120]
[404349453,1770070314260,-178.763365,0.00043887,120]
[404349454,1770070314269,-189.7163,0.00043887,120]
[404349455,1770070314279,-151.0,0.00043887,120]
[404349456,1770070314289,-151.0,0.00043887,120]
[404349457,1770070314298,-151.0,0.00043887,120]
[404349458,1770070314307,-151.0,0.00043887,120]
[404349459,1770070314317,-151.0,0.00043887,120]
[404349460,1770070314326,-151.0,0.00043887,120]
[404349461,1770070314335,-151.0,0.00043887,120]
[404349462,1770070314344,-151.0,0.00043887,120]
[404349463,1770070314353,-151.0,0.00043887,120]
[404349464,1770070314362,-151.0,0.00043887,120]
[404349465,1770070314371,-179.54689,0.00043887,120]
[404349466,1770070314380,-151.0,0.00043887,120]
[404349467,1770070314389,-151.0,0.00043887,120]
[404349468,1770070314399,-151.0,0.00043887,120]
[404349469,1770070314408,-151.0,0.00043887,120]
[404349470,1770070314417,-151.0,0.00043887,120]
[404349471,1770070314426,-151.0,0.00043887,120]
[404349472,1770070314435,-151.0,0.00043887,120]
[404349473,1770070314444,-151.0,0.00043887,120]
[404349474,1770070314454,-151.0,0.00043887,120]
[404349475,1770070314463,-151.0,0.00043887,120]
[404349476,1770070314473,-151.0,0.00043887,120]
[404349477,1770070314484,-151.0,0.00043887,120]
[404349478,1770070314494,-151.0,0.00043887,120]
[404349479,1770070314504,-151.0,0.00043887,120]
[404349480,1770070314513,-151.0,0.00043887,120]
[404349481,1770070314523,-151.0,0.00043887,120]
[404349482,1770070314534,-240.804154,0.00043887,120]
[404349483,1770070314543,-151.0,0.00043887,120]
[404349484,1770070314553,-151.0,0.00043887,120]
[404349485,1770070314563,-151.0,0.00043887,120]
[404349486,1770070314572,-151.0,0.00043887,120]
[404349487,1770070314581,-151.0,0.00043887,120]
[404349488,1770070314590,-151.0,0.00043887,120]
[404349489,1770070314599,-151.0,0.00043887,120]
[404349490,1770070314609,-151.0,0.00043887,120]
[404349491,1770070314618,-151.0,0.00043887,120]
[404349492,1770070314628,-151.0,0.00043887,120]
[404349493,1770070314637,-151.0,0.00043887,120]
[404349494,1770070314647,-151.0,0.00043887,120]
[404349495,1770070314656,-284.105189,0.00043887,120]
[404349496,1770070314666,-293.275279,0.00043887,120]
[404349497,1770070314675,-151.0,0.00043887,120]
[404349498,1770070314686,-281.050106,0.00043887,120]
[404349499,1770070314695,-157.079604,0.00043887,120]
[404349500,1770070314704,-157.079604,0.00043887,120]
[404349501,1770070314713,-157.079604,0.00043887,120]
[404349502,1770070314723,-151.0,0.00043887,120]
[404349503,1770070314732,-151.0,0.00043887,120]
[404349504,1770070314741,-157.079604,0.00043887,120]
[404349505,1770070314751,-151.0,0.00043887,120]
[404349506,1770070314760,-157.079604,0.00043887,120]
[404349507,1770070314769,-157.079604,0.00043887,120]
[404349508,1770070314779,-157.079604,0.00043887,120]
[404349509,1770070314788,-157.079604,0.00043887,120]
[404349510,1770070314797,-157.079604,0.00043887,120]
[404349511,1770070314807,-157.079604,0.00043887,120]
[404349512,1770070314816,-822.14894,0.00043887,120]
[404349513,1770070314825,-157.079604,0.00043887,120]
[404349514,1770070314834,-157.079604,0.00043887,120]
[404349515,1770070314843,-822.14894,0.00043887,120]
[404349516,1770070314851,-822.14894,0.00043887,120]
[404349517,1770070314861,-822.14894,0.00043887,120]
[404349518,1770070314870,-822.14894,0.00043887,120]
[404349519,1770070314879,-822.14894,0.00043887,120]
[404349520,1770070314889,-822.14894,0.00043887,120]
[404349521,1770070314898,-822.14894,0.00043887,120]
[404349522,1770070314906,-822.14894,0.00043887,120]
[404349523,1770070314916,-822.14894,0.00043887,120]
[404349524,1770070314925,-822.14894,0.00043887,120]
[404349525,1770070314934,-822.148931,0.00043887,120]
[404349526,1770070314944,-173.41104,0.00043887,120]
[404349527,1770070314953,-173.41104,0.00043887,120]
[404349528,1770070314963,-173.41104,0.00043887,120]
[404349529,1770070314972,-173.41104,0.00043887,120]
[404349530,1770070314981,-173.41104,0.00043887,120]
[404349531,1770070314990,-173.41104,0.00043887,120]
[404349532,1770070315000,-173.41104,0.00043887,120]
[404349533,1770070315009,-173.41104,0.00043887,120]
[404349534,1770070315018,-173.41104,0.00043887,120]
[404349535,1770070315027,-173.41104,0.00043887,120]
[404349536,1770070315036,-173.41104,0.00043887,120]
[404349537,1770070315044,-173.411046,0.00043887,120]
[404349538,1770070315054,-151.0,0.00043887,120]
[404349539,1770070315063,-151.0,0.00043887,120]
[404349540,1770070315073,-151.0,0.00043887,120]
[404349541,1770070315082,-151.0,0.00043887,120]
[404349542,1770070315092,-163.218914,0.00043887,120]
[404349543,1770070315101,-456.641554,0.00043887,120]
[404349544,1770070315111,-456.641554,0.00043887,120]
[404349545,1770070315120,-456.641554,0.00043887,120]
[404349546,1770070315129,-456.641554,0.00043887,120]
[404349547,1770070315139,-456.641554,0.00043887,120]
[404349548,1770070315149,-456.641554,0.00043887,120]
[404349549,1770070315158,-456.641554,0.00043887,120]
[404349550,1770070315167,-456.641555,0.00043887,120]
[404349551,1770070315176,-167.02189,0.00043887,30]
[404349552,1770070315185,-167.02189,0.00043887,30]
[404349553,1770070315194,-167.02189,0.00043887,30]
[404349554,1770070315203,-167.02189,0.00043887,30]
[404349555,1770070315211,-167.02189,0.00043887,30]
[404349556,1770070315220,-167.02189,0.00043887,30]
[404349557,1770070315229,-167.02189,0.00043887,30]
[404349558,1770070315242,-167.021885,0.00043887,30]
[404349559,1770070315253,-3035.858789,0.00043887,120]
[404349560,1770070315262,-3035.858789,0.00043887,120]
[404349561,1770070315272,-3035.858789,0.00043887,120]
[404349562,1770070315282,-3035.858789,0.00043887,120]
[404349563,1770070315292,-3035.858789,0.00043887,120]
[404349564,1770070315301,-3035.858789,0.00043887,120]
[404349565,1770070315311,-3035.858789,0.00043887,120]
[404349566,1770070315320,-3035.858785,0.00043887,120]
[404349567,1770070315330,-2232.826482,0.00043887,120]
[404349568,1770070315339,-151.0,0.00043887,120]
[404349569,1770070315348,-2232.826482,0.00043887,120]
[404349570,1770070315358,-151.0,0.00043887,120]
[404349571,1770070315367,-2232.826482,0.00043887,120]
[404349572,1770070315376,-151.0,0.00043887,120]
[404349573,1770070315385,-2232.826482,0.00043887,120]
[404349574,1770070315395,-583.294373,0.00043887,7]
[404349575,1770070315404,-151.0,0.00043887,120]
[404349576,1770070315414,-583.294373,0.00043887,7]
[404349577,1770070315423,-151.0,0.00043887,120]
[404349578,1770070315431,-2232.826482,0.00043887,120]
[404349579,1770070315440,-583.294373,0.00043887,7]
[404349580,1770070315450,-151.0,0.00043887,120]
[404349581,1770070315459,-2232.826482,0.00043887,120]
[404349582,1770070315467,-583.294373,0.00043887,7]
[404349583,1770070315476,-2232.826482,0.00043887,120]
[404349584,1770070315485,-583.294373,0.00043887,7]
[404349585,1770070315494,-2232.826476,0.00043887,120]
[404349586,1770070315503,-583.294373,0.00043887,7]
[404349587,1770070315513,-583.294373,0.00043887,7]
[404349588,1770070315523,-583.29436501,0.00043887,7]
[404349589,1770070315534,-150.0,0.000439,120]
[404349590,1770070315543,-400.0,0.000439,3]
[404349591,1770070315553,-492.83134771,0.000439,2]
[404349592,1770070315562,-300.0,0.0004391,30]
[404349593,1770070315571,-400.0,0.0004391,30]
[404349594,1770070315580,-600.0,0.0004391,30]
[404349595,1770070315590,-3626.23171358,0.0004391,30]
[404349596,1770070315600,-250.0,0.0004391,30]
[404349597,1770070315610,-250.0,0.0004391,30]
[404349598,1770070315620,-400.0,0.0004391,30]
[404349599,1770070315629,-600.0,0.0004391,30]
[404349600,1770070315640,-151.0,0.0004391,30]
[404349601,1770070315649,-500.0,0.0004391,30]
[404349602,1770070315658,-311.1,0.0004391,89]
[404349603,1770070315667,-250.0,0.0004391,89]
[404349604,1770070315677,-400.0,0.0004391,30]
[404349605,1770070315686,-600.0,0.0004391,30]
[404349606,1770070315695,-250.0,0.0004391,89]
[404349607,1770070315704,-151.0,0.0004391,89]
[404349608,1770070315714,-500.0,0.0004391,89]
[404349609,1770070315724,-250.0,0.0004391,120]
[404349610,1770070315733,-250.0,0.0004391,120]
[404349611,1770070315743,-600.0,0.0004391,30]
[404349612,1770070315752,-400.0,0.0004391,30]
[404349613,1770070315761,-151.0,0.0004391,120]
[404349614,1770070315771,-500.0,0.0004391,120]
[404349615,1770070315780,-151.0,0.0004391,30]
[404349616,1770070315789,-600.0,0.0004391,30]
[404349617,1770070315799,-400.0,0.0004391,30]
[404349618,1770070315808,-156.587,0.0004391,89]
[404349619,1770070315817,-600.0,0.0004391,30]
[404349620,1770070315826,-400.0,0.0004391,30]
[404349621,1770070315835,-151.0,0.0004391,30]
[404349622,1770070315845,-600.0,0.0004391,30]
[404349623,1770070315855,-400.0,0.0004391,30]
[404349624,1770070315864,-151.0,0.0004391,89]
[404349625,1770070315873,-162.380719,0.0004391,120]
[404349626,1770070315882,-600.0,0.0004391,30]
[404349627,1770070315891,-400.0,0.0004391,30]
[404349628,1770070315900,-151.0,0.0004391,120]
[404349629,1770070315909,-600.0,0.0004391,30]
[404349630,1770070315917,-400.0,0.0004391,30]
[404349631,1770070315926,-600.0,0.0004391,30]
[404349632,1770070315936,-400.0,0.0004391,30]
[404349633,1770070315947,-400.0,0.0004391,30]
[404349634,1770070315956,-400.0,0.0004391,30]
[404349635,1770070315967,-500.0,0.0004391,30]
[404349636,1770070315977,-400.0,0.0004391,30]
[404349637,1770070315986,-500.0,0.0004391,89]
[404349638,1770070315995,-400.0,0.0004391,30]
[404349639,1770070316004,-500.0,0.0004391,30]
[404349640,1770070316014,-500.0,0.0004391,120]
[404349641,1770070316023,-400.0,0.0004391,30]
[404349642,1770070316032,-500.0,0.0004391,89]
[404349643,1770070316042,-400.0,0.0004391,30]
[404349644,1770070316220,-500.0,0.0004391,120]
[404349645,1770070316231,-1030.0,0.0004391,30]
[404349646,1770070316244,-1068.11,0.0004391,89]
[404349647,1770070316253,-160.0,0.0004391,30]
[404349648,1770070316262,-151.0,0.0004391,30]
[404349649,1770070316272,-1107.63007,0.0004391,120]
[404349650,1770070316281,-250.0,0.0004391,30]
[404349651,1770070316290,-500.0,0.0004391,30]
[404349652,1770070316299,-160.0,0.0004391,89]
[404349653,1770070316308,-156.587,0.0004391,89]
[404349654,1770070316317,-1680.30749987,0.0004391,30]
[404349655,1770070316326,-250.0,0.0004391,89]
[404349656,1770070316335,-1041.39554862,0.0004391,30]
[404349657,1770070316344,-518.5,0.0004391,89]
[404349658,1770070316354,-160.0,0.0004391,120]
[404349659,1770070316363,-162.380719,0.0004391,120]
[404349660,1770070316371,-250.0,0.0004391,120]
[404349661,1770070316381,-537.6845,0.0004391,120]
[404349662,1770070316391,-520.0,0.0004391,30]
[404349663,1770070316400,-500.0,0.0004391,30]
[404349664,1770070316409,-157.80056867,0.0004391,30]
[404349665,1770070316419,-539.24,0.0004391,89]
[404349666,1770070316428,-559.19188,0.0004391,120]
[404349667,1770070316437,-500.0,0.0004391,30]
[404349668,1770070316447,-151.0,0.0004391,30]
[404349669,1770070316457,-500.0,0.0004391,89]
[404349670,1770070316469,-500.0,0.0004391,30]
[404349671,1770070316480,-156.587,0.0004391,89]
[404349672,1770070316489,-500.0,0.0004391,120]
[404349673,1770070316498,-500.0,0.0004391,89]
[404349674,1770070316507,-162.380719,0.0004391,120]
[404349675,1770070316516,-500.0,0.0004391,120]
[404349676,1770070316525,-500.0,0.0004391,30]
[404349677,1770070316535,-500.0,0.0004391,89]
[404349678,1770070316544,-500.0,0.0004391,89]
[404349679,1770070316556,-620.0,0.0004391,30]
[404349680,1770070316565,-420.51377791,0.0004391,120]
[404349681,1770070316575,-642.94,0.0004391,89]
[404349682,1770070316584,-356.3049196,0.0004391,30]
[404349683,1770070316594,-666.72878,0.0004391,120]
[404349684,1770070316604,-200.0,0.0004391,30]
[404349685,1770070316614,-259.47032613,0.0004391,30]
[404349686,1770070316623,-207.4,0.0004391,30]
[404349687,1770070316632,-220.0,0.0004391,30]
[404349688,1770070316642,-215.0738,0.0004391,30]
[404349689,1770070316652,-223.0315306,0.0004391,30]
[404349690,1770070316661,-220.0,0.0004391,30]
[404349691,1770070316670,-231.28369723,0.0004391,30]
[404349692,1770070316679,-220.0,0.0004391,30]
[404349693,1770070316688,-500.0,0.0004391,30]
[404349694,1770070316697,-151.0,0.0004391,30]
[404349695,1770070316706,-239.84119403,0.0004391,30]
[404349696,1770070316715,-220.0,0.0004391,30]
[404349697,1770070316725,-500.0,0.0004391,89]
[404349698,1770070316734,-151.0,0.0004391,30]
[404349699,1770070316744,-248.71531821,0.0004391,30]
[404349700,1770070316753,-220.0,0.0004391,30]
[404349701,1770070316762,-500.0,0.0004391,120]
[404349702,1770070316772,-257.91778498,0.0004391,30]
[404349703,1770070316781,-220.0,0.0004391,30]
[404349704,1770070316791,-151.0,0.0004391,30]
[404349705,1770070316800,-267.46074303,0.0004391,30]
[404349706,1770070316812,-220.0,0.0004391,30]
[404349707,1770070316822,-151.0,0.0004391,30]
[404349708,1770070316831,-151.0,0.0004391,30]
[404349709,1770070316840,-220.0,0.0004391,30]
[404349710,1770070316850,-151.0,0.0004391,30]
[404349711,1770070316859,-220.0,0.0004391,30]
[404349712,1770070316868,-151.0,0.0004391,30]
[404349713,1770070316877,-220.0,0.0004391,30]
[404349714,1770070316887,-151.0,0.0004391,30]
[404349715,1770070316896,-151.0,0.0004391,30]
[404349716,1770070316905,-151.0,0.0004391,30]
[404349717,1770070316914,-151.0,0.0004391,30]
[404349718,1770070316923,-151.0,0.0004391,30]
[404349719,1770070316932,-151.0,0.0004391,30]
[404349720,1770070316942,-151.0,0.0004391,30]
[404349721,1770070316951,-151.0,0.0004391,30]
[404349722,1770070316959,-151.0,0.0004391,30]
[404349723,1770070316968,-250.0,0.0004391,30]
[404349724,1770070316978,-151.0,0.0004391,30]
[404349725,1770070316988,-250.0,0.0004391,30]
[404349726,1770070316998,-151.0,0.0004391,30]
[404349727,1770070317010,-250.0,0.0004391,30]
[404349728,1770070317019,-250.0,0.0004391,30]
[404349729,1770070317030,-151.0,0.0004391,30]
[404349730,1770070317039,-250.0,0.0004391,30]
[404349731,1770070317049,-151.0,0.0004391,30]
[404349732,1770070317058,-250.0,0.0004391,30]
[404349733,1770070317067,-250.0,0.0004391,30]
[404349734,1770070317076,-250.0,0.0004391,30]
[404349735,1770070317086,-250.0,0.0004391,89]
[404349736,1770070317096,-250.0,0.0004391,30]
[404349737,1770070317107,-250.0,0.0004391,120]
[404349738,1770070317117,-250.0,0.0004391,30]
[404349739,1770070317127,-250.0,0.0004391,30]
[404349740,1770070317137,-250.0,0.0004391,30]
[404349741,1770070317160,-250.0,0.0004391,30]
[404349742,1770070317177,-250.0,0.0004391,30]
[404349743,1770070317198,-250.0,0.0004391,30]
[404349744,1770070317216,-250.0,0.0004391,30]
[404349745,1770070317231,-250.0,0.0004391,30]
[404349746,1770070317252,-250.0,0.0004391,30]
[404349747,1770070317273,-250.0,0.0004391,30]
[404349748,1770070317293,-250.95578754,0.0004391,30]
[404349749,1770070317312,-151.0,0.0004391,30]
[404349750,1770070317331,-156.587,0.0004391,89]
[404349751,1770070317352,-162.380719,0.0004391,120]
[404349752,1770070317367,-900.0,0.00043911,60]
[404349753,1770070317387,-1103.0,0.00043911,30]
[404349754,1770070317400,-204.56680947,0.00043911,30]
[404349755,1770070317418,-159.89827162,0.00043911,30]
[404349756,1770070317433,-264.31887779,0.00043911,30]
[404349757,1770070317450,-153.49024865,0.00043911,30]
[404349758,1770070317465,-284.75257465,0.00043911,30]
[404349759,1770070317480,-252.07935007,0.00043911,30]
[404349760,1770070317496,-217.73499936,0.00043911,30]
[404349761,1770070317512,-224.38720016,0.00043911,30]
[404349762,1770070317528,-216.07548022,0.00043911,30]
[404349763,1770070317543,-222.96225707,0.00043911,30]
[404349764,1770070317560,-220.34762851,0.00043911,30]
[404349765,1770070317575,-225.39207028,0.00043911,30]
[404349766,1770070317591,-242.32940609,0.00043911,30]
[404349767,1770070317607,-187.9072907,0.00043911,30]
[404349768,1770070317621,-152.85254006,0.00043911,30]
[404349769,1770070317639,-151.0,0.00043923,120]
[404349770,1770070317663,-151.0,0.00043924,120]
[404349771,1770070317683,-50000.0,0.00043926,59]
[404349772,1770070317701,-50000.0,0.00043926,60]
[404349773,1770070317720,-50000.0,0.00043926,61]
[404349774,1770070317735,-50000.0,0.00043926,62]
[404349775,1770070317754,-50000.0,0.00043926,63]
[404349776,1770070317770,-50000.0,0.00043926,64]
[404349777,1770070317785,-318.174447,0.00043927,120]
[404349778,1770070317800,-318.174447,0.00043927,120]
[404349779,1770070317816,-151.0,0.00043927,120]
[404349780,1770070317834,-318.174447,0.00043927,120]
[404349781,1770070317849,-250.164865,0.00043927,120]
[404349782,1770070317865,-318.174447,0.00043927,120]